[Event "Titled Tuesday Blitz December 06 Early 2022"]
[White "Golubev, Mikhail"]
[Black "Przybylski, Wojciech"]
[WhiteFideId "14100983"]
[BlackFideId "1117599"]
[WhiteElo "2593"]
[BlackElo "2452"]
[Result "1-0"]
[Round "07"]
[TimeControl "180+1"]
[Date "2022.12.07"]
[WhiteClock "0:00:03"]
[BlackClock "0:00:01"]

1. e4 {[%clk 0:03:00]}  e5 {[%clk 0:02:55]} 2. Nc3 {[%clk 0:02:59]}  Nf6 {[%clk 0:02:54]} 3. d4 {[%clk 0:02:58]}  exd4 {[%clk 0:02:53]} 4. Qxd4 {[%clk 0:02:59]}  Nc6 {[%clk 0:02:53]} 5. Qd3 {[%clk 0:02:58]}  Bb4 {[%clk 0:02:50]} 6. Bd2 {[%clk 0:02:57]}  O-O {[%clk 0:02:50]} 7. O-O-O {[%clk 0:02:57]}  d6 {[%clk 0:02:49]} 8. h3 {[%clk 0:02:48]}  Re8 {[%clk 0:02:48]} 9. Nge2 {[%clk 0:02:44]}  Qe7 {[%clk 0:02:42]} 10. a3 {[%clk 0:02:12]}  Bc5 {[%clk 0:02:13]} 11. Bg5 {[%clk 0:01:54]}  Ne5 {[%clk 0:01:32]} 12. Qg3 {[%clk 0:01:41]}  c6 {[%clk 0:01:17]} 13. Nf4 {[%clk 0:01:23]}  Ng6 {[%clk 0:00:57]} 14. Nxg6 {[%clk 0:01:14]}  hxg6 {[%clk 0:00:56]} 15. Bd3 {[%clk 0:01:08]}  Qe5 {[%clk 0:00:35]} 16. f4 {[%clk 0:01:04]}  Qd4 {[%clk 0:00:31]} 17. Rhe1 {[%clk 0:00:40]}  Bxa3 {[%clk 0:00:28]} 18. Bf1 {[%clk 0:00:30]}  Bxb2+ {[%clk 0:00:23]} 19. Kxb2 {[%clk 0:00:30]}  Qb4+ {[%clk 0:00:21]} 20. Kc1 {[%clk 0:00:24]}  Qa3+ {[%clk 0:00:19]} 21. Kb1 {[%clk 0:00:24]}  Qb4+ {[%clk 0:00:18]} 22. Ka1 {[%clk 0:00:23]}  Nh5 {[%clk 0:00:16]} 23. Qd3 {[%clk 0:00:21]}  Be6 {[%clk 0:00:13]} 24. Na2 {[%clk 0:00:18]}  Qa4 {[%clk 0:00:11]} 25. c4 {[%clk 0:00:18]}  b5 {[%clk 0:00:11]} 26. Qxd6 {[%clk 0:00:12]}  bxc4 {[%clk 0:00:11]} 27. f5 {[%clk 0:00:12]}  gxf5 {[%clk 0:00:08]} 28. exf5 {[%clk 0:00:13]}  Bxf5 {[%clk 0:00:08]} 29. Rxe8+ {[%clk 0:00:12]}  Rxe8 {[%clk 0:00:08]} 30. g4 {[%clk 0:00:12]}  Bc2 {[%clk 0:00:05]} 31. Rc1 {[%clk 0:00:12]}  Bb3 {[%clk 0:00:05]} 32. Qd2 {[%clk 0:00:08]}  Ng3 {[%clk 0:00:05]} 33. Kb1 {[%clk 0:00:03]}  Ne4 {[%clk 0:00:05]} 34. Qb2 {[%clk 0:00:02]}  Nxg5 {[%clk 0:00:05]} 35. Nc3 {[%clk 0:00:02]}  Qa5 {[%clk 0:00:05]} 36. h4 {[%clk 0:00:03]}  Ne6 {[%clk 0:00:05]} 37. h5 {[%clk 0:00:03]}  Nc5 {[%clk 0:00:05]} 38. h6 {[%clk 0:00:03]}  f6 {[%clk 0:00:03]} 39. h7+ {[%clk 0:00:02]}  Kh8 {[%clk 0:00:01]} 40. g5 {[%clk 0:00:03]} 1-0


[Site "https://www.chess.com"]

[Event "Titled Tuesday Blitz December 06 Early 2022"]
[White "Goroshkov, Maksym"]
[Black "Sadilek, Peter"]
[WhiteFideId "14142716"]
[BlackFideId "1616439"]
[WhiteElo "2627"]
[BlackElo "2460"]
[Result "1/2-1/2"]
[Round "07"]
[TimeControl "180+1"]
[Date "2022.12.07"]
[WhiteClock "0:00:46"]
[BlackClock "0:00:09"]

1. e4 {[%clk 0:03:00]}  g6 {[%clk 0:02:52]} 2. d4 {[%clk 0:03:00]}  Bg7 {[%clk 0:02:53]} 3. c4 {[%clk 0:03:00]}  d6 {[%clk 0:02:52]} 4. Nc3 {[%clk 0:03:00]}  Nf6 {[%clk 0:02:52]} 5. f3 {[%clk 0:03:00]}  O-O {[%clk 0:02:52]} 6. Be3 {[%clk 0:03:01]}  a6 {[%clk 0:02:53]} 7. Qd2 {[%clk 0:03:01]}  Nbd7 {[%clk 0:02:54]} 8. h4 {[%clk 0:02:57]}  h5 {[%clk 0:02:50]} 9. O-O-O {[%clk 0:02:54]}  c5 {[%clk 0:02:49]} 10. dxc5 {[%clk 0:02:53]}  dxc5 {[%clk 0:02:46]} 11. Bxc5 {[%clk 0:02:52]}  b5 {[%clk 0:02:40]} 12. Be3 {[%clk 0:02:50]}  bxc4 {[%clk 0:02:36]} 13. Bxc4 {[%clk 0:02:49]}  Qc7 {[%clk 0:02:36]} 14. Bb3 {[%clk 0:02:48]}  Nc5 {[%clk 0:02:33]} 15. Bxc5 {[%clk 0:02:44]}  Qxc5 {[%clk 0:02:34]} 16. Kb1 {[%clk 0:02:45]}  Rb8 {[%clk 0:02:28]} 17. Nge2 {[%clk 0:02:42]}  a5 {[%clk 0:02:28]} 18. Nf4 {[%clk 0:02:39]}  Ba6 {[%clk 0:02:22]} 19. Qd4 {[%clk 0:02:28]}  Qc7 {[%clk 0:01:42]} 20. Nfd5 {[%clk 0:02:18]}  Nxd5 {[%clk 0:01:42]} 21. Nxd5 {[%clk 0:02:19]}  Qb7 {[%clk 0:01:38]} 22. Qa4 {[%clk 0:02:04]}  e6 {[%clk 0:01:24]} 23. Nc3 {[%clk 0:01:58]}  Rfc8 {[%clk 0:00:56]} 24. Qxa5 {[%clk 0:01:55]}  Ra8 {[%clk 0:00:48]} 25. Qa4 {[%clk 0:01:34]}  Bxc3 {[%clk 0:00:42]} 26. Qd7 {[%clk 0:01:32]}  Qxd7 {[%clk 0:00:37]} 27. Rxd7 {[%clk 0:01:33]}  Bf6 {[%clk 0:00:33]} 28. f4 {[%clk 0:01:29]}  Rd8 {[%clk 0:00:24]} 29. Rhd1 {[%clk 0:01:29]}  Be2 {[%clk 0:00:21]} 30. R1d2 {[%clk 0:01:27]}  Rxd7 {[%clk 0:00:20]} 31. Rxd7 {[%clk 0:01:28]}  Bxh4 {[%clk 0:00:20]} 32. f5 {[%clk 0:01:27]}  gxf5 {[%clk 0:00:12]} 33. exf5 {[%clk 0:01:28]}  Bg4 {[%clk 0:00:11]} 34. fxe6 {[%clk 0:01:25]}  Bf5+ {[%clk 0:00:11]} 35. Ka1 {[%clk 0:01:24]}  fxe6 {[%clk 0:00:11]} 36. Rd4 {[%clk 0:01:23]}  Bf6 {[%clk 0:00:11]} 37. Rf4 {[%clk 0:01:20]}  Kg7 {[%clk 0:00:09]} 38. a4 {[%clk 0:01:18]}  Rb8 {[%clk 0:00:09]} 39. Ka2 {[%clk 0:01:18]}  Be5 {[%clk 0:00:09]} 40. Rf2 {[%clk 0:01:14]}  Kg6 {[%clk 0:00:08]} 41. Re2 {[%clk 0:01:14]}  Rb4 {[%clk 0:00:07]} 42. Rxe5 {[%clk 0:01:14]}  Rg4 {[%clk 0:00:08]} 43. Bxe6 {[%clk 0:01:13]}  Bxe6+ {[%clk 0:00:07]} 44. Rxe6+ {[%clk 0:01:14]}  Kf5 {[%clk 0:00:08]} 45. Rh6 {[%clk 0:01:13]}  Rxa4+ {[%clk 0:00:08]} 46. Kb3 {[%clk 0:01:13]}  Rh4 {[%clk 0:00:08]} 47. Rh8 {[%clk 0:01:11]}  Rh2 {[%clk 0:00:07]} 48. Ka3 {[%clk 0:01:03]}  Ke6 {[%clk 0:00:06]} 49. b4 {[%clk 0:01:02]}  Rxg2 {[%clk 0:00:06]} 50. Rxh5 {[%clk 0:01:02]}  Kd6 {[%clk 0:00:06]} 51. Rc5 {[%clk 0:01:01]}  Rg8 {[%clk 0:00:05]} 52. Ka4 {[%clk 0:00:58]}  Ra8+ {[%clk 0:00:05]} 53. Kb5 {[%clk 0:00:58]}  Rb8+ {[%clk 0:00:05]} 54. Kc4 {[%clk 0:00:58]}  Rf8 {[%clk 0:00:06]} 55. Kd4 {[%clk 0:00:56]}  Rf4+ {[%clk 0:00:06]} 56. Kc3 {[%clk 0:00:56]}  Rf3+ {[%clk 0:00:07]} 57. Kc4 {[%clk 0:00:56]}  Rf8 {[%clk 0:00:07]} 58. Kb5 {[%clk 0:00:55]}  Rb8+ {[%clk 0:00:07]} 59. Ka4 {[%clk 0:00:56]}  Ra8+ {[%clk 0:00:07]} 60. Ra5 {[%clk 0:00:57]}  Rc8 {[%clk 0:00:08]} 61. Ra6+ {[%clk 0:00:56]}  Kc7 {[%clk 0:00:07]} 62. Kb5 {[%clk 0:00:56]}  Kb7 {[%clk 0:00:07]} 63. Rh6 {[%clk 0:00:53]}  Rf8 {[%clk 0:00:06]} 64. Rh7+ {[%clk 0:00:54]}  Kb8 {[%clk 0:00:06]} 65. Ka5 {[%clk 0:00:53]}  Rg8 {[%clk 0:00:06]} 66. Rf7 {[%clk 0:00:52]}  Rd8 {[%clk 0:00:06]} 67. b5 {[%clk 0:00:52]}  Re8 {[%clk 0:00:06]} 68. Ka6 {[%clk 0:00:51]}  Rc8 {[%clk 0:00:07]} 69. b6 {[%clk 0:00:49]}  Rd8 {[%clk 0:00:07]} 70. Rb7+ {[%clk 0:00:49]}  Ka8 {[%clk 0:00:07]} 71. Rc7 {[%clk 0:00:48]}  Rf8 {[%clk 0:00:07]} 72. Rc1 {[%clk 0:00:48]}  Kb8 {[%clk 0:00:07]} 73. Rg1 {[%clk 0:00:48]}  Rc8 {[%clk 0:00:07]} 74. Rg6 {[%clk 0:00:47]}  Rd8 {[%clk 0:00:08]} 75. b7 {[%clk 0:00:46]}  Re8 {[%clk 0:00:07]} 76. Rc6 {[%clk 0:00:45]}  Rf8 {[%clk 0:00:07]} 77. Kb6 {[%clk 0:00:45]}  Re8 {[%clk 0:00:08]} 78. Rd6 {[%clk 0:00:45]}  Rf8 {[%clk 0:00:08]} 79. Kc6 {[%clk 0:00:45]}  Re8 {[%clk 0:00:09]} 80. Kd7 {[%clk 0:00:44]}  Rg8 {[%clk 0:00:08]} 81. Rb6 {[%clk 0:00:45]}  Rg7+ {[%clk 0:00:09]} 82. Kc6 {[%clk 0:00:45]}  Rg6+ {[%clk 0:00:09]} 83. Kc5 {[%clk 0:00:46]}  Rxb6 {[%clk 0:00:09]} 84. Kxb6 {[%clk 0:00:46]} 1/2-1/2


[Site "https://www.chess.com"]

[Event "Titled Tuesday Blitz December 06 Early 2022"]
[White "Grot, Blazej"]
[Black "Chernov, Mikhail"]
[WhiteFideId "21835845"]
[BlackFideId "24143170"]
[WhiteElo "1823"]
[BlackElo "2113"]
[Result "0-1"]
[Round "07"]
[TimeControl "180+1"]
[Date "2022.12.07"]
[WhiteClock "0:00:05"]
[BlackClock "0:00:06"]

1. e4 {[%clk 0:02:56]}  c5 {[%clk 0:02:59]} 2. Nc3 {[%clk 0:02:54]}  Nc6 {[%clk 0:02:59]} 3. Bb5 {[%clk 0:02:54]}  Nd4 {[%clk 0:02:59]} 4. Nf3 {[%clk 0:02:54]}  Nxb5 {[%clk 0:02:59]} 5. Nxb5 {[%clk 0:02:54]}  a6 {[%clk 0:03:00]} 6. Nc3 {[%clk 0:02:53]}  b5 {[%clk 0:03:01]} 7. d4 {[%clk 0:02:54]}  cxd4 {[%clk 0:03:01]} 8. Qxd4 {[%clk 0:02:55]}  d6 {[%clk 0:02:56]} 9. O-O {[%clk 0:02:52]}  e6 {[%clk 0:02:46]} 10. Be3 {[%clk 0:02:46]}  Nf6 {[%clk 0:02:45]} 11. Rad1 {[%clk 0:02:46]}  Be7 {[%clk 0:02:43]} 12. e5 {[%clk 0:02:40]}  dxe5 {[%clk 0:02:43]} 13. Qxe5 {[%clk 0:02:28]}  Qa5 {[%clk 0:02:34]} 14. a4 {[%clk 0:02:21]}  O-O {[%clk 0:02:27]} 15. axb5 {[%clk 0:02:21]}  axb5 {[%clk 0:02:26]} 16. Qxb5 {[%clk 0:02:17]}  Qxb5 {[%clk 0:02:22]} 17. Nxb5 {[%clk 0:02:18]}  Ba6 {[%clk 0:02:13]} 18. c4 {[%clk 0:01:58]}  Bxb5 {[%clk 0:02:02]} 19. cxb5 {[%clk 0:01:59]}  Nd5 {[%clk 0:02:00]} 20. Nd4 {[%clk 0:01:56]}  Nxe3 {[%clk 0:01:57]} 21. fxe3 {[%clk 0:01:56]}  Ra2 {[%clk 0:01:56]} 22. Rb1 {[%clk 0:01:46]}  Bf6 {[%clk 0:01:45]} 23. Nc6 {[%clk 0:01:27]}  Bd8 {[%clk 0:01:18]} 24. Rfc1 {[%clk 0:00:52]}  Bb6 {[%clk 0:01:15]} 25. Rc3 {[%clk 0:00:52]}  f6 {[%clk 0:01:00]} 26. Ra3 {[%clk 0:00:42]}  Ra8 {[%clk 0:00:55]} 27. Rxa8+ {[%clk 0:00:21]}  Rxa8 {[%clk 0:00:56]} 28. Kf2 {[%clk 0:00:15]}  Kf7 {[%clk 0:00:54]} 29. Ke2 {[%clk 0:00:12]}  e5 {[%clk 0:00:52]} 30. Kd3 {[%clk 0:00:12]}  Ke6 {[%clk 0:00:52]} 31. b3 {[%clk 0:00:10]}  Ra2 {[%clk 0:00:50]} 32. Nb4 {[%clk 0:00:07]}  Rxg2 {[%clk 0:00:49]} 33. Rc1 {[%clk 0:00:07]}  Kf5 {[%clk 0:00:42]} 34. Nd5 {[%clk 0:00:06]}  Ba5 {[%clk 0:00:38]} 35. b4 {[%clk 0:00:05]}  Rb2 {[%clk 0:00:24]} 36. bxa5 {[%clk 0:00:02]}  Rxb5 {[%clk 0:00:25]} 37. Kc4 {[%clk 0:00:02]}  Rxa5 {[%clk 0:00:24]} 38. Rf1+ {[%clk 0:00:03]}  Ke4 {[%clk 0:00:19]} 39. Nc3+ {[%clk 0:00:02]}  Kxe3 {[%clk 0:00:19]} 40. Nd5+ {[%clk 0:00:02]}  Ke2 {[%clk 0:00:18]} 41. Rg1 {[%clk 0:00:02]}  Ra7 {[%clk 0:00:17]} 42. Nc3+ {[%clk 0:00:02]}  Kf2 {[%clk 0:00:17]} 43. Rd1 {[%clk 0:00:02]}  h5 {[%clk 0:00:14]} 44. Rd2+ {[%clk 0:00:02]}  Kf3 {[%clk 0:00:12]} 45. Nd5 {[%clk 0:00:03]}  h4 {[%clk 0:00:11]} 46. Rd3+ {[%clk 0:00:02]}  Kg2 {[%clk 0:00:09]} 47. Rd2+ {[%clk 0:00:03]}  Kh3 {[%clk 0:00:09]} 48. Ne3 {[%clk 0:00:03]}  g5 {[%clk 0:00:09]} 49. Nf5 {[%clk 0:00:03]}  Ra3 {[%clk 0:00:06]} 50. Kd5 {[%clk 0:00:04]}  Rf3 {[%clk 0:00:06]} 51. Ke4 {[%clk 0:00:04]}  Rf4+ {[%clk 0:00:06]} 52. Ke3 {[%clk 0:00:02]}  Rxf5 {[%clk 0:00:07]} 53. Rd8 {[%clk 0:00:01]}  Kxh2 {[%clk 0:00:06]} 54. Ke4 {[%clk 0:00:02]}  Rf4+ {[%clk 0:00:07]} 55. Ke3 {[%clk 0:00:03]}  h3 {[%clk 0:00:07]} 56. Rg8 {[%clk 0:00:03]}  Kg2 {[%clk 0:00:07]} 57. Rh8 {[%clk 0:00:04]}  h2 {[%clk 0:00:08]} 58. Ke2 {[%clk 0:00:05]}  h1=Q {[%clk 0:00:07]} 59. Rh2+ {[%clk 0:00:05]}  Qxh2 {[%clk 0:00:06]} 0-1


[Site "https://www.chess.com"]

[Event "Titled Tuesday Blitz December 06 Early 2022"]
[White "Harikrishna, Pentala"]
[Black "Corrales Jimenez, Fidel"]
[WhiteFideId "5007003"]
[BlackFideId "3506690"]
[WhiteElo "2617"]
[BlackElo "2541"]
[Result "1-0"]
[Round "07"]
[TimeControl "180+1"]
[Date "2022.12.06"]
[WhiteClock "0:00:10"]
[BlackClock "0:00:18"]

1. Nf3 {[%clk 0:03:00]}  c5 {[%clk 0:02:58]} 2. c4 {[%clk 0:02:59]}  Nc6 {[%clk 0:02:58]} 3. Nc3 {[%clk 0:02:59]}  Nf6 {[%clk 0:02:51]} 4. g3 {[%clk 0:02:59]}  g6 {[%clk 0:02:46]} 5. Bg2 {[%clk 0:02:58]}  Bg7 {[%clk 0:02:43]} 6. d4 {[%clk 0:02:58]}  d6 {[%clk 0:02:43]} 7. O-O {[%clk 0:02:51]}  Bd7 {[%clk 0:02:43]} 8. dxc5 {[%clk 0:02:48]}  dxc5 {[%clk 0:02:43]} 9. Bf4 {[%clk 0:02:46]}  O-O {[%clk 0:02:42]} 10. Ne5 {[%clk 0:02:44]}  Nxe5 {[%clk 0:02:29]} 11. Bxe5 {[%clk 0:02:45]}  Qc8 {[%clk 0:02:29]} 12. Qb3 {[%clk 0:02:35]}  Bc6 {[%clk 0:02:29]} 13. Rad1 {[%clk 0:02:01]}  Bxg2 {[%clk 0:02:21]} 14. Kxg2 {[%clk 0:02:02]}  Qc6+ {[%clk 0:02:21]} 15. f3 {[%clk 0:02:02]}  Rfd8 {[%clk 0:02:19]} 16. Bxf6 {[%clk 0:02:01]}  Bxf6 {[%clk 0:02:18]} 17. Nd5 {[%clk 0:01:58]}  Kg7 {[%clk 0:02:19]} 18. Rd3 {[%clk 0:01:49]}  e6 {[%clk 0:01:40]} 19. Nxf6 {[%clk 0:01:35]}  Kxf6 {[%clk 0:01:41]} 20. Rfd1 {[%clk 0:01:25]}  Ke7 {[%clk 0:01:37]} 21. h4 {[%clk 0:01:03]}  h5 {[%clk 0:01:37]} 22. Qc3 {[%clk 0:01:02]}  Qc7 {[%clk 0:01:30]} 23. Qa3 {[%clk 0:00:55]}  b6 {[%clk 0:01:29]} 24. Qc3 {[%clk 0:00:42]}  Rxd3 {[%clk 0:01:25]} 25. Qxd3 {[%clk 0:00:42]}  Rd8 {[%clk 0:01:26]} 26. Qxd8+ {[%clk 0:00:36]}  Qxd8 {[%clk 0:01:26]} 27. Rxd8 {[%clk 0:00:36]}  Kxd8 {[%clk 0:01:27]} 28. g4 {[%clk 0:00:35]}  Ke7 {[%clk 0:01:27]} 29. Kg3 {[%clk 0:00:34]}  e5 {[%clk 0:01:27]} 30. gxh5 {[%clk 0:00:30]}  gxh5 {[%clk 0:01:28]} 31. e4 {[%clk 0:00:28]}  Kd6 {[%clk 0:01:17]} 32. Kf2 {[%clk 0:00:26]}  b5 {[%clk 0:01:06]} 33. cxb5 {[%clk 0:00:19]}  c4 {[%clk 0:01:07]} 34. Ke3 {[%clk 0:00:18]}  Kc5 {[%clk 0:01:07]} 35. Kd2 {[%clk 0:00:15]}  Kxb5 {[%clk 0:01:02]} 36. Kc3 {[%clk 0:00:15]}  Kc5 {[%clk 0:00:47]} 37. b3 {[%clk 0:00:12]}  cxb3 {[%clk 0:00:47]} 38. axb3 {[%clk 0:00:12]}  a6 {[%clk 0:00:42]} 39. b4+ {[%clk 0:00:11]}  Kb6 {[%clk 0:00:36]} 40. Kc4 {[%clk 0:00:07]}  Kc6 {[%clk 0:00:35]} 41. Kc3 {[%clk 0:00:06]}  Kb5 {[%clk 0:00:36]} 42. Kb3 {[%clk 0:00:07]}  f6 {[%clk 0:00:34]} 43. Kc3 {[%clk 0:00:07]}  Ka4 {[%clk 0:00:31]} 44. Kc4 {[%clk 0:00:07]}  Ka3 {[%clk 0:00:18]} 45. b5 {[%clk 0:00:07]}  axb5+ {[%clk 0:00:18]} 46. Kxb5 {[%clk 0:00:08]}  Kb3 {[%clk 0:00:19]} 47. Kc5 {[%clk 0:00:09]}  Kc3 {[%clk 0:00:19]} 48. Kd5 {[%clk 0:00:09]}  Kd3 {[%clk 0:00:19]} 49. Ke6 {[%clk 0:00:10]}  Ke3 {[%clk 0:00:19]} 50. Kxf6 {[%clk 0:00:11]}  Kf4 {[%clk 0:00:19]} 51. Kg6 {[%clk 0:00:08]}  Kxf3 {[%clk 0:00:19]} 52. Kf5 {[%clk 0:00:08]}  Kg3 {[%clk 0:00:19]} 53. Kxe5 {[%clk 0:00:08]}  Kxh4 {[%clk 0:00:19]} 54. Kf4 {[%clk 0:00:09]}  Kh3 {[%clk 0:00:20]} 55. e5 {[%clk 0:00:09]}  h4 {[%clk 0:00:20]} 56. Kf3 {[%clk 0:00:09]}  Kh2 {[%clk 0:00:20]} 57. e6 {[%clk 0:00:10]}  h3 {[%clk 0:00:21]} 58. e7 {[%clk 0:00:10]}  Kg1 {[%clk 0:00:17]} 59. e8=Q {[%clk 0:00:10]}  h2 {[%clk 0:00:18]} 60. Qe1# {[%clk 0:00:10]} 1-0


[Site "https://www.chess.com"]

[Event "Titled Tuesday Blitz December 06 Early 2022"]
[White "Herman, Daniel"]
[Black "Matveeva, Olga"]
[WhiteFideId "30935008"]
[BlackFideId "24107018"]
[WhiteElo "2488"]
[BlackElo "2328"]
[Result "0-1"]
[Round "07"]
[TimeControl "180+1"]
[Date "2022.12.07"]
[WhiteClock "0:00:09"]
[BlackClock "0:00:06"]

1. d4 {[%clk 0:03:00]}  Nf6 {[%clk 0:02:59]} 2. c4 {[%clk 0:03:01]}  e6 {[%clk 0:02:59]} 3. Nc3 {[%clk 0:03:01]}  Bb4 {[%clk 0:03:00]} 4. e3 {[%clk 0:03:02]}  O-O {[%clk 0:02:59]} 5. Bd3 {[%clk 0:03:01]}  d5 {[%clk 0:02:57]} 6. cxd5 {[%clk 0:02:56]}  exd5 {[%clk 0:02:51]} 7. Ne2 {[%clk 0:02:55]}  Re8 {[%clk 0:02:50]} 8. O-O {[%clk 0:02:54]}  Bg4 {[%clk 0:02:47]} 9. Qb3 {[%clk 0:02:50]}  Nc6 {[%clk 0:02:38]} 10. Nf4 {[%clk 0:02:44]}  Be6 {[%clk 0:02:25]} 11. Bd2 {[%clk 0:02:41]}  Rb8 {[%clk 0:02:22]} 12. Rac1 {[%clk 0:02:35]}  Bd6 {[%clk 0:02:20]} 13. Nxe6 {[%clk 0:02:29]}  fxe6 {[%clk 0:02:15]} 14. f4 {[%clk 0:02:16]}  Ne7 {[%clk 0:02:04]} 15. Nb5 {[%clk 0:02:10]}  Nf5 {[%clk 0:01:40]} 16. Qc2 {[%clk 0:01:47]}  g6 {[%clk 0:01:36]} 17. Kh1 {[%clk 0:01:34]}  c6 {[%clk 0:01:31]} 18. Nc3 {[%clk 0:01:29]}  Rc8 {[%clk 0:01:27]} 19. Rg1 {[%clk 0:01:25]}  Bf8 {[%clk 0:01:25]} 20. g4 {[%clk 0:01:24]}  Nd6 {[%clk 0:01:25]} 21. g5 {[%clk 0:01:10]}  Nd7 {[%clk 0:01:21]} 22. Na4 {[%clk 0:01:02]}  Bg7 {[%clk 0:01:20]} 23. Bb4 {[%clk 0:00:58]}  Nf5 {[%clk 0:01:15]} 24. Qd2 {[%clk 0:00:52]}  Nb6 {[%clk 0:01:03]} 25. Nc5 {[%clk 0:00:49]}  Qc7 {[%clk 0:00:54]} 26. a4 {[%clk 0:00:47]}  Nd7 {[%clk 0:00:49]} 27. Ba3 {[%clk 0:00:34]}  Nxc5 {[%clk 0:00:43]} 28. Bxc5 {[%clk 0:00:35]}  b6 {[%clk 0:00:42]} 29. Ba3 {[%clk 0:00:34]}  Qd7 {[%clk 0:00:39]} 30. b4 {[%clk 0:00:33]}  Qd6 {[%clk 0:00:22]} 31. Rc2 {[%clk 0:00:28]}  a5 {[%clk 0:00:20]} 32. Rgc1 {[%clk 0:00:20]}  axb4 {[%clk 0:00:20]} 33. Bxb4 {[%clk 0:00:21]}  Qd7 {[%clk 0:00:20]} 34. a5 {[%clk 0:00:20]}  bxa5 {[%clk 0:00:19]} 35. Bxa5 {[%clk 0:00:21]}  Ra8 {[%clk 0:00:18]} 36. Bb6 {[%clk 0:00:21]}  Rac8 {[%clk 0:00:18]} 37. Bc5 {[%clk 0:00:21]}  Qb7 {[%clk 0:00:17]} 38. Rb2 {[%clk 0:00:21]}  Qd7 {[%clk 0:00:17]} 39. Rcb1 {[%clk 0:00:21]}  Rc7 {[%clk 0:00:18]} 40. Bb6 {[%clk 0:00:19]}  Rb7 {[%clk 0:00:17]} 41. Bc5 {[%clk 0:00:19]}  Rxb2 {[%clk 0:00:16]} 42. Rxb2 {[%clk 0:00:20]}  Rc8 {[%clk 0:00:16]} 43. Ba6 {[%clk 0:00:19]}  Ra8 {[%clk 0:00:15]} 44. Bb7 {[%clk 0:00:19]}  Rb8 {[%clk 0:00:14]} 45. Qb4 {[%clk 0:00:17]}  Bf8 {[%clk 0:00:12]} 46. Bxf8 {[%clk 0:00:17]}  Rxf8 {[%clk 0:00:13]} 47. Qc3 {[%clk 0:00:17]}  Rb8 {[%clk 0:00:12]} 48. Qb4 {[%clk 0:00:17]}  Qc7 {[%clk 0:00:12]} 49. Qb6 {[%clk 0:00:16]}  Qxb6 {[%clk 0:00:12]} 50. Rxb6 {[%clk 0:00:17]}  Nxe3 {[%clk 0:00:12]} 51. Kg1 {[%clk 0:00:15]}  Nf5 {[%clk 0:00:12]} 52. Rxc6 {[%clk 0:00:11]}  Rxb7 {[%clk 0:00:11]} 53. Rxe6 {[%clk 0:00:11]}  Nxd4 {[%clk 0:00:11]} 54. Rd6 {[%clk 0:00:11]}  Rb5 {[%clk 0:00:11]} 55. Kf2 {[%clk 0:00:11]}  Nf5 {[%clk 0:00:11]} 56. Rd7 {[%clk 0:00:10]}  d4 {[%clk 0:00:11]} 57. Kf3 {[%clk 0:00:10]}  Rb3+ {[%clk 0:00:11]} 58. Ke4 {[%clk 0:00:11]}  Re3+ {[%clk 0:00:11]} 59. Kd5 {[%clk 0:00:11]}  d3 {[%clk 0:00:11]} 60. Kc6 {[%clk 0:00:10]}  Ne7+ {[%clk 0:00:09]} 61. Kc7 {[%clk 0:00:10]}  Nf5 {[%clk 0:00:09]} 62. Kd8 {[%clk 0:00:10]}  h5 {[%clk 0:00:07]} 63. gxh6 {[%clk 0:00:10]}  Nxh6 {[%clk 0:00:07]} 64. h4 {[%clk 0:00:10]}  Nf5 {[%clk 0:00:07]} 65. Rd6 {[%clk 0:00:09]}  Nxd6 {[%clk 0:00:06]} 0-1


[Site "https://www.chess.com"]

[Event "Titled Tuesday Blitz December 06 Early 2022"]
[White "Hirneise, Jens"]
[Black "Yaran, Siar"]
[WhiteFideId "24614734"]
[BlackFideId "6323006"]
[WhiteElo "2482"]
[BlackElo "2639"]
[Result "0-1"]
[Round "07"]
[TimeControl "180+1"]
[Date "2022.12.07"]
[WhiteClock "0:00:02"]
[BlackClock "0:00:40"]

1. e4 {[%clk 0:03:00]}  e5 {[%clk 0:02:57]} 2. Nf3 {[%clk 0:02:59]}  Nc6 {[%clk 0:02:57]} 3. Be2 {[%clk 0:02:54]}  Nf6 {[%clk 0:02:56]} 4. d3 {[%clk 0:02:54]}  d5 {[%clk 0:02:56]} 5. Nbd2 {[%clk 0:02:51]}  b6 {[%clk 0:02:53]} 6. O-O {[%clk 0:02:34]}  Bb7 {[%clk 0:02:53]} 7. Re1 {[%clk 0:02:32]}  Be7 {[%clk 0:02:53]} 8. c3 {[%clk 0:02:32]}  Qd7 {[%clk 0:02:52]} 9. Bf1 {[%clk 0:02:30]}  O-O-O {[%clk 0:02:51]} 10. a4 {[%clk 0:02:23]}  a5 {[%clk 0:02:50]} 11. Qc2 {[%clk 0:02:16]}  h6 {[%clk 0:02:41]} 12. exd5 {[%clk 0:01:44]}  Qxd5 {[%clk 0:02:40]} 13. Nc4 {[%clk 0:01:44]}  Bd6 {[%clk 0:02:23]} 14. b4 {[%clk 0:01:28]}  axb4 {[%clk 0:02:22]} 15. cxb4 {[%clk 0:01:24]}  Bxb4 {[%clk 0:02:16]} 16. Rxe5 {[%clk 0:01:22]}  Nxe5 {[%clk 0:02:13]} 17. Nxb6+ {[%clk 0:01:18]}  Kb8 {[%clk 0:02:08]} 18. Nxd5 {[%clk 0:01:18]}  Nxf3+ {[%clk 0:02:08]} 19. gxf3 {[%clk 0:01:19]}  Nxd5 {[%clk 0:02:04]} 20. Rb1 {[%clk 0:01:19]}  c5 {[%clk 0:02:01]} 21. d4 {[%clk 0:01:15]}  Rd6 {[%clk 0:01:59]} 22. Bd3 {[%clk 0:01:06]}  cxd4 {[%clk 0:01:43]} 23. Bd2 {[%clk 0:00:51]}  Rc8 {[%clk 0:01:34]} 24. Qb2 {[%clk 0:00:40]}  Rc3 {[%clk 0:01:28]} 25. Bxc3 {[%clk 0:00:30]}  dxc3 {[%clk 0:01:27]} 26. Qe2 {[%clk 0:00:20]}  Re6 {[%clk 0:01:22]} 27. Qc2 {[%clk 0:00:10]}  Ba5 {[%clk 0:01:11]} 28. Be4 {[%clk 0:00:06]}  Re5 {[%clk 0:00:42]} 29. Rxb7+ {[%clk 0:00:01]}  Kxb7 {[%clk 0:00:41]} 30. Qb3+ {[%clk 0:00:01]}  Kc6 {[%clk 0:00:41]} 31. Qb5+ {[%clk 0:00:02]}  Kd6 {[%clk 0:00:42]} 32. Qxa5 {[%clk 0:00:02]}  f5 {[%clk 0:00:40]} 33. Qd8+ {[%clk 0:00:02]}  Kc5 {[%clk 0:00:40]} 0-1


[Site "https://www.chess.com"]